fUSD/lending_fUSD_20260614
["ID","MTS","AMOUNT","RATE_DAILY","PERIOD"]
[425045118,1781445062000,-1553.29,0.00027671,8]
[425045119,1781445062000,-500.0,0.00027671,8]
[425045137,1781445062000,-443.79094241,0.00027671,8]
[425045123,1781445062000,-563.78,0.00027671,8]
[425045124,1781445062000,-1729.69,0.00027671,8]
[425045126,1781445062000,-500.0,0.00027671,8]
[425045128,1781445062000,-500.0,0.00027671,8]
[425045129,1781445062000,-500.0,0.00027671,8]
[425045125,1781445062000,-568.86,0.00027671,8]
[425045127,1781445062000,-500.0,0.00027671,8]
[425045131,1781445062000,-1772.51,0.00027671,8]
[425045133,1781445062000,-500.0,0.00027671,8]
[425045135,1781445062000,-500.0,0.00027671,8]
[425045145,1781445062000,-1525.54,0.00027671,8]
[425045144,1781445062000,-966.65,0.00027671,8]
[425045130,1781445062000,-500.0,0.00027671,8]
[425045165,1781445062000,-500.0,0.00027671,8]
[425045175,1781445062000,-1275.5,0.00027671,8]
[425045164,1781445062000,-500.0,0.00027671,8]
[425045198,1781445062000,-547.51,0.00027671,8]
[425045196,1781445062000,-500.0,0.00027671,8]
[425045206,1781445062000,-732.53,0.00027671,8]
[425045200,1781445062000,-1091.33,0.00027671,8]
[425045202,1781445062000,-500.0,0.00027671,8]
[425045199,1781445062000,-500.0,0.00027671,8]
[425045207,1781445062000,-500.0,0.00027671,8]
[425045205,1781445062000,-3016.22,0.00027671,8]
[425045201,1781445062000,-1102.28,0.00027671,8]
[425045197,1781445062000,-1076.72,0.00027671,8]
[425045204,1781445062000,-500.0,0.00027671,8]
[425045195,1781445062000,-500.0,0.00027671,8]
[425045203,1781445062000,-500.92,0.00027671,8]
[425045218,1781445062000,-500.0,0.00027671,8]
[425045209,1781445062000,-500.0,0.00027671,8]
[425045219,1781445062000,-500.0,0.00027671,8]
[425045212,1781445062000,-500.0,0.00027671,8]
[425045211,1781445062000,-500.0,0.00027671,8]
[425045214,1781445062000,-500.0,0.00027671,8]
[425045213,1781445062000,-670.89,0.00027671,8]
[425045210,1781445062000,-500.0,0.00027671,8]
[425045216,1781445062000,-981.03,0.00027671,8]
[425045217,1781445062000,-500.0,0.00027671,8]
[425045168,1781445062000,-500.0,0.00027671,8]
[425045220,1781445062000,-500.0,0.00027671,8]
[425045193,1781445062000,-500.0,0.00027671,8]
[425045215,1781445062000,-536.91,0.00027671,8]
[425045185,1781445062000,-500.0,0.00027671,8]
[425045167,1781445062000,-500.0,0.00027671,8]
[425045166,1781445062000,-637.39,0.00027671,8]
[425045170,1781445062000,-500.0,0.00027671,8]
[425045179,1781445062000,-835.55,0.00027671,8]
[425045181,1781445062000,-767.16,0.00027671,8]
[425045172,1781445062000,-523.82,0.00027671,8]
[425045189,1781445062000,-500.0,0.00027671,8]
[425045173,1781445062000,-500.0,0.00027671,8]
[425045180,1781445062000,-576.76,0.00027671,8]
[425045182,1781445062000,-886.28,0.00027671,8]
[425045171,1781445062000,-500.0,0.00027671,8]
[425045174,1781445062000,-1459.31,0.00027671,8]
[425045176,1781445062000,-773.61,0.00027671,8]
[425045177,1781445062000,-169.90690424,0.00027671,8]
[425045208,1781445062000,-603.95,0.00027671,8]
[425045184,1781445062000,-925.43,0.00027671,8]
[425045183,1781445062000,-728.36,0.00027671,8]
[425045194,1781445062000,-657.5,0.00027671,8]
[425045188,1781445062000,-500.0,0.00027671,8]
[425045187,1781445062000,-835.35,0.00027671,8]
[425045192,1781445062000,-1207.99,0.00027671,8]
[425045191,1781445062000,-500.0,0.00027671,8]
[425045190,1781445062000,-500.0,0.00027671,8]
[425045178,1781445062000,-834.52,0.00027671,8]
[425045186,1781445062000,-500.0,0.00027671,8]
[425045251,1781445063000,-500.0,0.00027671,8]
[425045256,1781445063000,-500.0,0.00027671,8]
[425045258,1781445063000,-810.74,0.00027671,8]
[425045252,1781445063000,-1140.82,0.00027671,8]
[425045254,1781445063000,-238.44938563,0.00027671,8]
[425045257,1781445063000,-500.0,0.00027671,8]
[425045253,1781445063000,-994.86,0.00027671,8]
[425045255,1781445063000,-500.0,0.00027671,8]
[425045250,1781445063000,-500.0,0.00027671,8]
[425045248,1781445063000,-500.0,0.00027671,8]
[425045259,1781445063000,-3867.2,0.00027671,8]
[425045271,1781445063000,-1164.79,0.00027671,8]
[425045260,1781445063000,-1060.22,0.00027671,8]
[425045265,1781445063000,-1178.1,0.00027671,2]
[425045267,1781445063000,-803.26,0.00027671,8]
[425045263,1781445063000,-500.0,0.00027671,8]
[425045269,1781445063000,-500.0,0.00027671,8]
[425045266,1781445063000,-500.0,0.00027671,8]
[425045262,1781445063000,-500.0,0.00027671,8]
[425045268,1781445063000,-500.0,0.00027671,8]
[425045264,1781445063000,-500.0,0.00027671,8]
[425045249,1781445063000,-1051.44,0.00027671,8]
[425045281,1781445063000,-500.0,0.00027671,8]
[425045261,1781445063000,-500.0,0.00027671,8]
[425045241,1781445063000,-500.0,0.00027671,8]
[425045233,1781445063000,-500.0,0.00027671,8]
[425045247,1781445063000,-508.23,0.00027671,8]
[425045270,1781445063000,-1437.07,0.00027671,8]
[425045223,1781445063000,-500.0,0.00027671,8]
[425045225,1781445063000,-1252.9,0.00027671,8]
[425045221,1781445063000,-500.0,0.00027671,8]
[425045224,1781445063000,-585.85,0.00027671,8]
[425045227,1781445063000,-500.0,0.00027671,8]
[425045236,1781445063000,-500.0,0.00027671,8]
[425045228,1781445063000,-1090.97,0.00027671,8]
[425045230,1781445063000,-500.0,0.00027671,8]
[425045226,1781445063000,-633.57,0.00027671,7]
[425045229,1781445063000,-500.0,0.00027671,8]
[425045232,1781445063000,-500.0,0.00027671,8]
[425045234,1781445063000,-1295.86,0.00027671,8]
[425045235,1781445063000,-1353.09,0.00027671,8]
[425045231,1781445063000,-500.0,0.00027671,8]
[425045240,1781445063000,-2105.36,0.00027671,8]
[425045244,1781445063000,-1748.76,0.00027671,8]
[425045239,1781445063000,-929.25,0.00027671,8]
[425045238,1781445063000,-490.41323361,0.00027671,8]
[425045245,1781445063000,-1329.75,0.00027671,8]
[425045237,1781445063000,-500.0,0.00027671,8]
[425045246,1781445063000,-1080.52,0.00027671,8]
[425045242,1781445063000,-500.0,0.00027671,8]
[425045243,1781445063000,-500.0,0.00027671,8]
[425045273,1781445063000,-507.93,0.00027671,8]
[425045222,1781445063000,-173.21409755,0.00027671,8]
[425045277,1781445063000,-558.02,0.00027671,8]
[425045301,1781445063000,-500.0,0.00027671,8]
[425045306,1781445063000,-558.46,0.00027671,8]
[425045305,1781445063000,-686.07,0.00027671,8]
[425045316,1781445063000,-551.11,0.00027671,8]
[425045317,1781445063000,-500.0,0.00027671,8]
[425045307,1781445063000,-500.0,0.00027671,8]
[425045309,1781445063000,-500.0,0.00027671,8]
[425045308,1781445063000,-500.0,0.00027671,8]
[425045312,1781445063000,-500.0,0.00027671,8]
[425045311,1781445063000,-500.0,0.00027671,8]
[425045315,1781445063000,-500.0,0.00027671,8]
[425045298,1781445063000,-300.0,0.00027671,2]
[425045310,1781445063000,-189.85,0.00027671,8]
[425045319,1781445063000,-500.0,0.00027671,2]
[425045322,1781445063000,-500.0,0.00027671,8]
[425045320,1781445063000,-771.12,0.00027671,8]
[425045318,1781445063000,-500.0,0.00027671,8]
[425045324,1781445063000,-370.08161616,0.00027671,8]
[425045321,1781445063000,-4994.37,0.00027671,8]
[425045323,1781445063000,-3105.85,0.00027671,8]
[425045326,1781445063000,-1353.46,0.00027671,8]
[425045325,1781445063000,-500.0,0.00027671,8]
[425045327,1781445063000,-1013.56,0.00027671,8]
[425045274,1781445063000,-500.0,0.00027671,8]
[425045313,1781445063000,-941.17,0.00027671,8]
[425045296,1781445063000,-1526.79,0.00027671,8]
[425045314,1781445063000,-500.0,0.00027671,8]
[425045303,1781445063000,-500.0,0.00027671,8]
[425045275,1781445063000,-500.0,0.00027671,8]
[425045302,1781445063000,-1142.59,0.00027671,8]
[425045278,1781445063000,-1825.73,0.00027671,8]
[425045280,1781445063000,-500.0,0.00027671,8]
[425045272,1781445063000,-500.0,0.00027671,8]
[425045276,1781445063000,-1114.21,0.00027671,8]
[425045279,1781445063000,-3158.46,0.00027671,8]
[425045287,1781445063000,-768.64,0.00027671,8]
[425045286,1781445063000,-1336.36,0.00027671,8]
[425045289,1781445063000,-500.0,0.00027671,8]
[425045290,1781445063000,-500.0,0.00027671,8]
[425045285,1781445063000,-1728.68,0.00027671,8]
[425045284,1781445063000,-500.0,0.00027671,8]
[425045295,1781445063000,-500.0,0.00027671,8]
[425045300,1781445063000,-563.81,0.00027671,8]
[425045283,1781445063000,-500.0,0.00027671,8]
[425045297,1781445063000,-932.79,0.00027671,8]
[425045293,1781445063000,-500.0,0.00027671,8]
[425045304,1781445063000,-500.0,0.00027671,8]
[425045299,1781445063000,-1138.34,0.00027671,8]
[425045288,1781445063000,-500.0,0.00027671,8]
[425045282,1781445063000,-1338.03,0.00027671,8]
[425045292,1781445063000,-530.3,0.00027671,8]
[425045291,1781445063000,-500.0,0.00027671,8]
[425045294,1781445063000,-6001.7,0.00027671,8]
[425045374,1781445064000,-500.0,0.00027671,8]
[425045369,1781445064000,-2848.08,0.00027671,8]
[425045364,1781445064000,-500.0,0.00027671,8]
[425045363,1781445064000,-629.33,0.00027671,8]
[425045360,1781445064000,-500.0,0.00027671,8]
[425045356,1781445064000,-878.49,0.00027671,8]
[425045358,1781445064000,-500.0,0.00027671,8]
[425045359,1781445064000,-500.0,0.00027671,8]
[425045362,1781445064000,-500.0,0.00027671,8]
[425045366,1781445064000,-500.0,0.00027671,8]
[425045373,1781445064000,-500.0,0.00027671,8]
[425045368,1781445064000,-1755.69,0.00027671,8]
[425045386,1781445064000,-500.0,0.00027671,8]
[425045365,1781445064000,-500.0,0.00027671,8]
[425045371,1781445064000,-500.0,0.00027671,8]
[425045372,1781445064000,-530.44,0.00027671,8]
[425045367,1781445064000,-500.0,0.00027671,8]
[425045378,1781445064000,-500.0,0.00027671,8]
[425045375,1781445064000,-500.0,0.00027671,8]
[425045377,1781445064000,-500.0,0.00027671,8]
[425045384,1781445064000,-500.0,0.00027671,8]
[425045376,1781445064000,-325.60881368,0.00027671,8]
[425045379,1781445064000,-500.0,0.00027671,8]
[425045383,1781445064000,-500.0,0.00027671,8]
[425045361,1781445064000,-974.77,0.00027671,8]
[425045370,1781445064000,-500.0,0.00027671,8]
[425045357,1781445064000,-404.47363795,0.00027671,8]
[425045331,1781445064000,-1401.98,0.00027671,8]
[425045352,1781445064000,-500.0,0.00027671,8]
[425045328,1781445064000,-500.0,0.00027671,8]
[425045329,1781445064000,-2254.67,0.00027671,8]
[425045380,1781445064000,-500.0,0.00027671,8]
[425045337,1781445064000,-1947.8,0.00027671,8]
[425045332,1781445064000,-1444.77,0.00027671,8]
[425045333,1781445064000,-500.0,0.00027671,8]
[425045336,1781445064000,-500.0,0.00027671,8]
[425045330,1781445064000,-676.34,0.00027671,8]
[425045335,1781445064000,-500.0,0.00027671,8]
[425045334,1781445064000,-500.0,0.00027671,8]
[425045338,1781445064000,-500.0,0.00027671,8]
[425045339,1781445064000,-500.0,0.00027671,8]
[425045355,1781445064000,-1336.75,0.00027671,8]
[425045341,1781445064000,-500.0,0.00027671,8]
[425045342,1781445064000,-500.0,0.00027671,8]
[425045343,1781445064000,-500.0,0.00027671,8]
[425045345,1781445064000,-500.0,0.00027671,8]
[425045344,1781445064000,-500.0,0.00027671,8]
[425045347,1781445064000,-2195.64,0.00027671,8]
[425045346,1781445064000,-764.47,0.00027671,8]
[425045348,1781445064000,-1907.63,0.00027671,8]
[425045350,1781445064000,-2168.83,0.00027671,8]
[425045349,1781445064000,-500.0,0.00027671,8]
[425045351,1781445064000,-1832.1,0.00027671,8]
[425045354,1781445064000,-1468.5,0.00027671,8]
[425045353,1781445064000,-3356.03,0.00027671,8]
[425045340,1781445064000,-1266.92,0.00027671,8]
[425045381,1781445064000,-1879.48,0.00027671,8]
[425045389,1781445064000,-500.0,0.00027671,8]
[425045385,1781445064000,-1012.17,0.00027671,8]
[425045417,1781445064000,-6433.85,0.00027671,8]
[425045418,1781445064000,-500.0,0.00027671,8]
[425045411,1781445064000,-500.0,0.00027671,8]
[425045412,1781445064000,-500.0,0.00027671,8]
[425045414,1781445064000,-2150.75,0.00027671,8]
[425045424,1781445064000,-500.0,0.00027671,8]
[425045429,1781445064000,-964.79,0.00027671,8]
[425045430,1781445064000,-252.28,0.00027671,8]
[425045427,1781445064000,-500.0,0.00027671,8]
[425045425,1781445064000,-1582.43,0.00027671,8]
[425045433,1781445064000,-500.0,0.00027671,8]
[425045426,1781445064000,-1383.96,0.00027671,8]
[425045415,1781445064000,-500.0,0.00027671,8]
[425045423,1781445064000,-500.0,0.00027671,8]
[425045432,1781445064000,-500.0,0.00027671,8]
[425045431,1781445064000,-500.0,0.00027671,8]
[425045382,1781445064000,-724.37,0.00027671,8]
[425045436,1781445064000,-500.0,0.00027671,8]
[425045434,1781445064000,-1275.42,0.00027671,8]
[425045437,1781445064000,-718.11,0.00027671,8]
[425045438,1781445064000,-596.17,0.00027671,8]
[425045439,1781445064000,-500.0,0.00027671,8]
[425045440,1781445064000,-669.42,0.00027671,8]
[425045442,1781445064000,-500.0,0.00027671,8]
[425045443,1781445064000,-515.58,0.00027671,8]
[425045441,1781445064000,-939.0,0.00027671,8]
[425045428,1781445064000,-500.0,0.00027671,8]
[425045419,1781445064000,-807.5,0.00027671,8]
[425045435,1781445064000,-701.09,0.00027671,8]
[425045413,1781445064000,-799.87,0.00027671,8]
[425045420,1781445064000,-13236.4,0.00027671,8]
[425045388,1781445064000,-1251.64,0.00027671,8]
[425045387,1781445064000,-547.06,0.00027671,8]
[425045390,1781445064000,-500.0,0.00027671,8]
[425045397,1781445064000,-2000.0,0.00027671,2]
[425045392,1781445064000,-500.0,0.00027671,8]
[425045394,1781445064000,-500.0,0.00027671,8]
[425045391,1781445064000,-500.0,0.00027671,8]
[425045396,1781445064000,-568.86,0.00027671,8]
[425045393,1781445064000,-500.0,0.00027671,8]
[425045401,1781445064000,-899.03,0.00027671,8]
[425045403,1781445064000,-500.0,0.00027671,8]
[425045400,1781445064000,-500.0,0.00027671,8]
[425045395,1781445064000,-1157.44,0.00027671,8]
[425045398,1781445064000,-600.61,0.00027671,8]
[425045422,1781445064000,-1074.85,0.00027671,8]
[425045416,1781445064000,-500.0,0.00027671,8]
[425045421,1781445064000,-500.0,0.00027671,8]
[425045399,1781445064000,-500.0,0.00027671,8]
[425045408,1781445064000,-500.0,0.00027671,8]
[425045410,1781445064000,-500.0,0.00027671,8]
[425045409,1781445064000,-500.0,0.00027671,8]
[425045407,1781445064000,-500.0,0.00027671,8]
[425045402,1781445064000,-863.97,0.00027671,8]
[425045404,1781445064000,-500.0,0.00027671,8]
[425045405,1781445064000,-500.0,0.00027671,8]
[425045406,1781445064000,-5519.11,0.00027671,8]
[425045454,1781445065000,-158.0713227,0.00027697,2]
[425045445,1781445065000,-500.0,0.00027671,8]
[425045444,1781445065000,-1462.77,0.00027671,8]
[425045446,1781445065000,-500.0,0.00027671,8]
[425045457,1781445065000,-483370.75592865,0.000277,5]
[425045447,1781445065000,-814.91,0.00027671,8]
[425045452,1781445065000,-247.9,0.00027672,7]
[425045449,1781445065000,-500.0,0.00027671,8]
[425045453,1781445065000,-247.85,0.00027672,7]
[425045450,1781445065000,-500.0,0.00027671,8]
[425045456,1781445065000,-1742.81,0.000277,7]
[425045448,1781445065000,-500.0,0.00027671,8]
[425045451,1781445065000,-500.0,0.00027671,8]
[425045458,1781445065000,-394.56,0.00018,2]
[425045455,1781445065000,-1731.96,0.000277,7]
[425045473,1781445080000,-10.10766114,0.0002544,8]
[425045472,1781445080000,-293.47302106,0.0002544,8]
[425045475,1781445080000,-241.55098364,0.00026602,2]
[425045478,1781445080000,-320.361053,0.00026781,2]
[425045476,1781445080000,-78.81006936,0.00026602,2]
[425045469,1781445080000,-43.61931167,0.00024841,2]
[425045479,1781445080000,-500.0,0.00027397,2]
[425045480,1781445080000,-673.58782464,0.00027397,2]
[425045474,1781445080000,-320.361053,0.00026602,2]
[425045471,1781445080000,-209.4193178,0.0002544,8]
[425045467,1781445080000,-147.65664739,0.0002296,6]
[425045466,1781445080000,-365.34335261,0.0002296,6]
[425045470,1781445080000,-276.74174133,0.00024841,2]
[425045465,1781445080000,-290.65664739,0.0002048,4]
[425045464,1781445080000,-222.34335261,0.0002048,4]
[425045463,1781445080000,-320.361053,0.0002,2]
[425045462,1781445080000,-353.12701218,0.0001827,2]
[425045460,1781445080000,-2112.69141779,0.00018223,2]
[425045461,1781445080000,-387.30858221,0.00018223,2]
[425045459,1781445080000,-118.44,0.00018,2]
[425045468,1781445080000,-320.361053,0.00022977,2]
[425045482,1781445080000,-500.0,0.00027397,2]
[425045477,1781445080000,-320.361053,0.00026781,2]
[425045481,1781445080000,-331.19217536,0.00027397,2]
[425045504,1781445080000,-427.09009527,0.00027671,7]
[425045502,1781445080000,-1155.63,0.00027671,8]
[425045503,1781445080000,-1153.18,0.00027671,8]
[425045497,1781445080000,-207.735441,0.00027397,2]
[425045495,1781445080000,-207.735441,0.00027397,2]
[425045500,1781445080000,-1004.78,0.00027671,8]
[425045499,1781445080000,-500.0,0.00027671,8]
[425045498,1781445080000,-207.735441,0.00027397,2]
[425045501,1781445080000,-500.0,0.00027671,8]
[425045494,1781445080000,-295.03814073,0.00027397,10]
[425045496,1781445080000,-207.735441,0.00027397,2]
[425045490,1781445080000,-218.94679362,0.00027397,2]
[425045488,1781445080000,-478.60098736,0.00027397,10]
[425045489,1781445080000,-331.39901264,0.00027397,10]
[425045491,1781445080000,-207.735441,0.00027397,2]
[425045484,1781445080000,-1153.18,0.00027397,2]
[425045485,1781445080000,-500.0,0.00027397,2]
[425045487,1781445080000,-500.0,0.00027397,2]
[425045486,1781445080000,-500.0,0.00027397,2]
[425045483,1781445080000,-1155.63,0.00027397,2]
[425045493,1781445080000,-9215.28185927,0.00027397,10]
[425045492,1781445080000,-207.735441,0.00027397,2]
[425045505,1781445085000,-118.44,0.00018,2]
[425045506,1781445211000,-500.0,0.00016298,2]
[425045507,1781445264000,-500.0,0.00016298,2]
[425045508,1781445318000,-151.0,0.00016297,2]
[425045509,1781445371000,-150.0,0.00016297,2]
[425045511,1781445407000,248487.59038305,0.00015,2]
[425045510,1781445407000,50000.0,0.00015,2]
[425045513,1781445424000,-535.84350669,0.00016296,2]
[425045515,1781445443000,-150.0,0.00016296,2]
[425045516,1781445450000,271.87708515,0.000107,2]
[425045518,1781445464000,1003.6070255,9.04e-05,2]
[425045519,1781445493000,-151.0,0.00016296,2]
[425045520,1781445547000,-151.0,0.00016296,2]
[425045521,1781445601000,-500.0,0.00016295,2]
[425045522,1781445618000,250.0,0.00014,2]
[425045523,1781445654000,-300.0,0.00016,2]
[425045524,1781445805000,-150.0,0.00016159,2]
[425045525,1781445858000,-151.0,0.00015626,2]
[425045526,1781445911000,-151.0,0.00015626,2]
[425045536,1781445944000,-5000.0,0.00037992,120]
[425045533,1781445944000,-773.5823883,0.00037992,120]
[425045538,1781445944000,-5000.0,0.00037992,120]
[425045537,1781445944000,-5000.0,0.00037992,120]
[425045535,1781445944000,-5000.0,0.00037992,120]
[425045534,1781445944000,-174.17105529,0.00037992,120]
[425045527,1781445944000,-421.03949061,0.00037992,120]
[425045530,1781445944000,-197.85070358,0.00037992,120]
[425045529,1781445944000,-1881.2406,0.00037992,120]
[425045531,1781445944000,-2000.0,0.00037992,120]
[425045528,1781445944000,-1881.2406,0.00037992,120]
[425045539,1781445944000,-5000.0,0.00037992,120]
[425045532,1781445944000,-500.0,0.00037992,120]
[425045541,1781445944000,-154.30564512,0.00037992,120]
[425045554,1781445944000,-564.37,0.00037992,120]
[425045542,1781445944000,-200.0,0.00037992,120]
[425045555,1781445944000,-564.37,0.00037992,120]
[425045553,1781445944000,-564.37,0.00037992,120]
[425045552,1781445944000,-564.37,0.00037992,120]
[425045551,1781445944000,-564.37,0.00037992,120]
[425045540,1781445944000,-3419.95,0.00037992,120]
[425045550,1781445944000,-564.37,0.00037992,120]
[425045549,1781445944000,-564.37,0.00037992,120]
[425045544,1781445944000,-301.71,0.00037992,120]
[425045547,1781445944000,-564.37,0.00037992,120]
[425045546,1781445944000,-564.37,0.00037992,120]
[425045545,1781445944000,-229.5,0.00037992,120]
[425045543,1781445944000,-539.0874335,0.00037992,120]
[425045548,1781445944000,-564.37,0.00037992,120]
[425045565,1781445945000,-564.37,0.00037992,120]
[425045566,1781445945000,-564.37,0.00037992,120]
[425045569,1781445945000,-564.37,0.00037992,120]
[425045571,1781445945000,-564.37,0.00037992,120]
[425045568,1781445945000,-564.37,0.00037992,120]
[425045567,1781445945000,-564.37,0.00037992,120]
[425045570,1781445945000,-564.37,0.00037992,120]
[425045564,1781445945000,-564.37,0.00037992,120]
[425045558,1781445945000,-564.37,0.00037992,120]
[425045561,1781445945000,-564.37,0.00037992,120]
[425045562,1781445945000,-564.37,0.00037992,120]
[425045560,1781445945000,-564.37,0.00037992,120]
[425045559,1781445945000,-564.37,0.00037992,120]
[425045557,1781445945000,-564.37,0.00037992,120]
[425045556,1781445945000,-564.37,0.00037992,120]
[425045573,1781445945000,-564.37,0.00037992,120]
[425045563,1781445945000,-564.37,0.00037992,120]
[425045572,1781445945000,-564.37,0.00037992,120]
[425045582,1781445945000,-564.37,0.00037992,120]
[425045575,1781445945000,-564.37,0.00037992,120]
[425045593,1781445945000,-2610.37,0.00037992,120]
[425045591,1781445945000,-499.44,0.00037992,120]
[425045590,1781445945000,-564.37,0.00037992,120]
[425045589,1781445945000,-564.37,0.00037992,120]
[425045587,1781445945000,-564.37,0.00037992,120]
[425045588,1781445945000,-564.37,0.00037992,120]
[425045585,1781445945000,-564.37,0.00037992,120]
[425045586,1781445945000,-564.37,0.00037992,120]
[425045574,1781445945000,-564.37,0.00037992,120]
[425045584,1781445945000,-564.37,0.00037992,120]
[425045592,1781445945000,-2476.15,0.00037992,120]
[425045580,1781445945000,-564.37,0.00037992,120]
[425045581,1781445945000,-564.37,0.00037992,120]
[425045579,1781445945000,-564.37,0.00037992,120]
[425045578,1781445945000,-564.37,0.00037992,120]
[425045577,1781445945000,-564.37,0.00037992,120]
[425045576,1781445945000,-564.37,0.00037992,120]
[425045583,1781445945000,-564.37,0.00037992,120]
[425045604,1781445946000,-319.3,0.00037992,120]
[425045607,1781445946000,-500.0,0.00037992,120]
[425045612,1781445946000,-500.0,0.00037992,120]
[425045608,1781445946000,-500.0,0.00037992,120]
[425045611,1781445946000,-500.0,0.00037992,120]
[425045605,1781445946000,-481.90198699,0.00037992,120]
[425045606,1781445946000,-1978.8425,0.00037992,120]
[425045603,1781445946000,-500.0,0.00037992,120]
[425045599,1781445946000,-480.4052286,0.00037992,120]
[425045602,1781445946000,-500.0,0.00037992,120]
[425045600,1781445946000,-1978.8424,0.00037992,120]
[425045598,1781445946000,-367.90434517,0.00037992,120]
[425045597,1781445946000,-500.0,0.00037992,120]
[425045595,1781445946000,-355.62,0.00037992,120]
[425045596,1781445946000,-500.0,0.00037992,120]
[425045610,1781445946000,-500.0,0.00037992,120]
[425045601,1781445946000,-519.4268083,0.00037992,120]
[425045594,1781445946000,-3278.908,0.00037992,120]
[425045613,1781445946000,-231.23039228,0.00037992,120]
[425045615,1781445946000,-500.0,0.00037992,120]
[425045609,1781445946000,-500.0,0.00037992,120]
[425045630,1781445946000,-1000.0,0.00037992,30]
[425045629,1781445946000,-904.35,0.00037992,120]
[425045628,1781445946000,-487.0,0.00037992,120]
[425045626,1781445946000,-174.0643398,0.00037992,120]
[425045627,1781445946000,-1000.0,0.00037992,30]
[425045625,1781445946000,-1000.0,0.00037992,120]
[425045623,1781445946000,-503.09,0.00037992,30]
[425045631,1781445946000,-1000.0,0.00037992,30]
[425045622,1781445946000,-503.09,0.00037992,30]
[425045621,1781445946000,-503.09,0.00037992,30]
[425045618,1781445946000,-496.20362012,0.00037992,120]
[425045620,1781445946000,-503.09,0.00037992,30]
[425045619,1781445946000,-503.09,0.00037992,30]
[425045617,1781445946000,-500.0,0.00037992,120]
[425045614,1781445946000,-3069.5327,0.00037992,120]
[425045616,1781445946000,-505.21610022,0.00037992,120]
[425045624,1781445946000,-503.09,0.00037992,30]
[425045645,1781445947000,-500.0,0.00037992,120]
[425045644,1781445947000,-1000.0,0.00037992,30]
[425045643,1781445947000,-500.0,0.00037992,120]
[425045642,1781445947000,-500.0,0.00037992,120]
[425045640,1781445947000,-500.0,0.00037992,120]
[425045638,1781445947000,-1000.0,0.00037992,60]
[425045641,1781445947000,-500.0,0.00037992,120]
[425045635,1781445947000,-503.08,0.00037992,30]
[425045637,1781445947000,-1000.0,0.00037992,60]
[425045636,1781445947000,-503.08,0.00037992,30]
[425045634,1781445947000,-503.08,0.00037992,30]
[425045633,1781445947000,-503.08,0.00037992,30]
[425045632,1781445947000,-1000.0,0.00037992,30]
[425045646,1781445947000,-500.0,0.00037992,120]
[425045639,1781445947000,-500.0,0.00037992,120]
[425045649,1781445947000,-500.0,0.00037992,120]
[425045654,1781445947000,-500.0,0.00037992,120]
[425045647,1781445947000,-500.0,0.00037992,120]
[425045648,1781445947000,-500.0,0.00037992,120]
[425045663,1781445947000,-1000.0,0.00037992,60]